fUST/lending_fUST_20240711
["ID","MTS","AMOUNT","RATE_DAILY","PERIOD"]
[331684282,1720636242986,-636.83771669,0.00032876,7]
[331684283,1720636242995,-1274.34,0.00032876,7]
[331684284,1720636243004,-500.0,0.00032876,7]
[331684286,1720636243014,-1274.34,0.00032876,7]
[331684288,1720636243024,-1274.34,0.00032876,7]
[331684292,1720636243035,-1274.34,0.00032876,7]
[331684296,1720636243049,-1274.34,0.00032876,7]
[331684299,1720636243063,-1274.34,0.00032876,7]
[331684303,1720636243075,-1274.34,0.00032876,7]
[331684306,1720636243086,-1274.34,0.00032876,7]
[331684307,1720636243098,-1274.34,0.00032876,7]
[331684308,1720636243111,-1274.34,0.00032876,7]
[331684309,1720636243125,-1274.34,0.00032876,7]
[331684310,1720636243137,-1274.34,0.00032876,7]
[331684311,1720636243150,-1274.34,0.00032876,7]
[331684312,1720636243162,-513.95739066,0.00032876,7]
[331684313,1720636243177,-1274.34,0.00032876,7]
[331684314,1720636243190,-1274.34,0.00032876,7]
[331684315,1720636243202,-1274.34,0.00032876,7]
[331684317,1720636243214,-1274.34,0.00032876,7]
[331684318,1720636243226,-1274.34,0.00032876,7]
[331684319,1720636243238,-500.0,0.00032876,7]
[331684321,1720636243252,-1274.34,0.00032876,7]
[331684322,1720636243264,-1274.34,0.00032876,7]
[331684323,1720636243276,-500.0,0.00032876,7]
[331684324,1720636243287,-1274.34,0.00032876,7]
[331684325,1720636243297,-1274.34,0.00032876,7]
[331684326,1720636243310,-1274.34,0.00032876,7]
[331684327,1720636243321,-500.0,0.00032876,7]
[331684328,1720636243334,-1274.5,0.00032876,7]
[331684330,1720636243347,-1236.65,0.00032876,7]
[331684331,1720636243359,-857.68572,0.00032876,7]
[331684332,1720636243372,-857.68572,0.00032876,7]
[331684333,1720636243385,-151.0,0.00032876,7]
[331684335,1720636243398,-500.0,0.00032876,7]
[331684337,1720636243411,-151.0,0.00032876,7]
[331684338,1720636243422,-857.68572,0.00032876,7]
[331684339,1720636243432,-857.68572,0.00032876,7]
[331684340,1720636243442,-511.08383652,0.00032876,7]
[331684341,1720636243453,-372.87948702,0.00032876,7]
[331684342,1720636243466,-151.0,0.00032876,7]
[331684343,1720636243480,-151.0,0.00032876,7]
[331684344,1720636243493,-232.604208,0.00032876,7]
[331684345,1720636243504,-232.604208,0.00032876,7]
[331684346,1720636243518,-521.69716309,0.00032876,7]
[331684347,1720636243530,-151.0,0.00032876,7]
[331684348,1720636243542,-500.0,0.00032876,2]
[331684349,1720636243553,-151.0,0.00032876,7]
[331684350,1720636243564,-500.0,0.00032876,7]
[331684351,1720636243575,-500.0,0.00032876,7]
[331684352,1720636243586,-500.0,0.00032876,2]
[331684353,1720636243597,-500.0,0.00032876,7]
[331684354,1720636243608,-500.0,0.00032876,7]
[331684355,1720636243618,-500.0,0.00032876,7]
[331684356,1720636243630,-500.0,0.00032876,7]
[331684357,1720636243644,-232.604208,0.00032876,7]
[331684358,1720636243655,-500.0,0.00032876,7]
[331684359,1720636243666,-408.75626168,0.00032876,7]
[331684360,1720636243677,-500.0,0.00032876,7]
[331684361,1720636243688,-232.604208,0.00032876,7]
[331684362,1720636243700,-500.0,0.00032876,2]
[331684363,1720636243711,-645.67381914,0.00032876,7]
[331684364,1720636243722,-448.45902527,0.00032876,7]
[331684365,1720636243734,-500.0,0.00032877,7]
[331684366,1720636243745,-500.0,0.00032877,7]
[331684367,1720636243756,-500.0,0.00032877,7]
[331684368,1720636243767,-500.0,0.00032877,7]
[331684369,1720636243778,-500.0,0.00032877,7]
[331684370,1720636243788,-177.655455,0.00032877,7]
[331684371,1720636243799,-151.0,0.00032907,5]
[331684372,1720636243810,-622.851427,0.00032928,7]
[331684373,1720636243821,-622.851427,0.00032928,7]
[331684374,1720636243832,-151.0,0.00032928,7]
[331684375,1720636243842,-151.0,0.00032928,7]
[331684376,1720636243853,-1011.626735,0.00032928,7]
[331684377,1720636243865,-1011.626735,0.00032928,7]
[331684378,1720636243877,-600.0,0.00032928,2]
[331684379,1720636243888,-857.68572,0.00032928,7]
[331684380,1720636243898,-151.0,0.00032928,7]
[331684381,1720636243909,-857.68572,0.00032928,7]
[331684382,1720636243920,-160.1527,0.00032928,7]
[331684383,1720636243931,-232.604208,0.00032928,7]
[331684384,1720636243942,-151.0,0.00032928,7]
[331684385,1720636243952,-232.604208,0.00032928,7]
[331684386,1720636243963,-500.0,0.00032939,5]
[331684387,1720636243974,-1274.96860487,0.00033,2]
[331684388,1720636243986,-366.48323855,0.00033,120]
[331684389,1720636243997,-292.55335768,0.00033,7]
[331684390,1720636244009,-150.0,0.000331,14]
[331684391,1720636244020,-500.0,0.00033129,5]
[331684392,1720636244032,-500.0,0.00033129,5]
[331684393,1720636244043,-500.0,0.0003314,5]
[331684394,1720636244054,-500.0,0.00033148,5]
[331684395,1720636244065,-500.0,0.00033149,5]
[331684396,1720636244077,-151.0,0.00033149,7]
[331684397,1720636244088,-187.87868,0.00033149,7]
[331684398,1720636244098,-151.0,0.00033149,7]
[331684399,1720636244108,-187.87868,0.00033149,7]
[331684400,1720636244120,-697.269872,0.00033149,7]
[331684401,1720636244131,-697.269872,0.00033149,7]
[331684402,1720636244141,-151.0,0.00033149,7]
[331684403,1720636244151,-151.0,0.00033149,7]
[331684404,1720636244160,-500.0,0.0003315,7]
[331684405,1720636244169,-500.0,0.0003315,7]
[331684406,1720636244309,-500.0,0.0003315,7]
[331684407,1720636244320,-534.34713418,0.0003315,7]
[331684408,1720636244329,-545.1273048,0.0003315,7]
[331684409,1720636244339,-973.43,0.0003315,7]
[331684410,1720636244348,-500.0,0.0003315,7]
[331684411,1720636244357,-500.0,0.0003315,7]
[331684412,1720636244366,-500.0,0.0003315,7]
[331684413,1720636244376,-500.0,0.0003315,7]
[331684414,1720636244385,-500.0,0.0003315,7]
[331684415,1720636244395,-438.81452264,0.0003315,7]
[331684416,1720636244403,-500.0,0.0003315,7]
[331684417,1720636244413,-733.17,0.0003315,7]
[331684418,1720636244424,-500.0,0.0003315,7]
[331684419,1720636244433,-500.0,0.0003315,7]
[331684420,1720636244443,-925.78,0.0003315,7]
[331684421,1720636244451,-811.04,0.0003315,7]
[331684422,1720636244461,-500.0,0.0003315,7]
[331684423,1720636244471,-1500.0,0.0003315,7]
[331684424,1720636244480,-500.0,0.0003315,7]
[331684425,1720636244491,-1393.03,0.0003315,7]
[331684426,1720636244500,-500.0,0.0003315,7]
[331684427,1720636244509,-500.0,0.0003315,7]
[331684428,1720636244519,-690.35,0.0003315,7]
[331684429,1720636244528,-698.71,0.0003315,7]
[331684430,1720636244537,-508.18,0.0003315,7]
[331684431,1720636244546,-475.14948919,0.0003315,7]
[331684432,1720636244555,-500.00756614,0.0003315,7]
[331684433,1720636244565,-500.0,0.0003315,7]
[331684434,1720636244574,-500.0,0.0003315,7]
[331684435,1720636244584,-500.0,0.0003315,7]
[331684436,1720636244594,-500.0,0.0003315,7]
[331684437,1720636244603,-151.0,0.0003315,7]
[331684438,1720636244613,-500.0,0.0003315,7]
[331684439,1720636244622,-500.0,0.0003315,7]
[331684440,1720636244632,-500.0,0.0003315,7]
[331684441,1720636244642,-500.0,0.0003315,7]
[331684442,1720636244652,-500.0,0.0003315,7]
[331684443,1720636244661,-500.0,0.0003315,7]
[331684444,1720636244670,-500.0,0.0003315,7]
[331684445,1720636244680,-500.0,0.0003315,7]
[331684446,1720636244689,-613.82163791,0.0003315,7]
[331684447,1720636244698,-500.0,0.0003315,7]
[331684448,1720636244707,-633.42,0.0003315,7]
[331684449,1720636244716,-500.0,0.0003315,7]
[331684450,1720636244726,-500.0,0.0003315,7]
[331684451,1720636244735,-401.01117963,0.0003315,7]
[331684452,1720636244743,-2095.64,0.0003315,7]
[331684453,1720636244752,-500.0,0.0003315,7]
[331684454,1720636244762,-1185.53,0.0003315,7]
[331684455,1720636244771,-326.22437545,0.0003315,7]
[331684456,1720636244780,-500.0,0.0003315,7]
[331684457,1720636244789,-500.0,0.0003315,7]
[331684458,1720636244798,-500.0,0.0003315,7]
[331684459,1720636244807,-549.53602772,0.0003315,7]
[331684460,1720636244817,-500.0,0.0003315,7]
[331684461,1720636244826,-500.0,0.0003315,7]
[331684462,1720636244835,-505.1385116,0.0003315,7]
[331684463,1720636244844,-500.0,0.0003315,7]
[331684464,1720636244854,-602.98,0.0003315,7]
[331684465,1720636244865,-4898.91,0.0003315,7]
[331684466,1720636244874,-500.0,0.0003315,7]
[331684467,1720636244884,-500.0,0.0003315,7]
[331684468,1720636244894,-647.82142921,0.0003315,7]
[331684469,1720636244904,-1150.07,0.0003315,7]
[331684470,1720636244913,-1655.71,0.0003315,7]
[331684471,1720636244922,-151.0,0.0003315,7]
[331684472,1720636244932,-477.16209449,0.0003315,7]
[331684473,1720636244941,-500.0,0.0003315,2]
[331684474,1720636244951,-544.72617333,0.0003315,7]
[331684475,1720636244960,-500.0,0.0003315,7]
[331684476,1720636244969,-500.0,0.0003315,7]
[331684477,1720636244978,-500.0,0.0003315,7]
[331684478,1720636244990,-510.71627223,0.0003315,7]
[331684479,1720636244999,-902.9,0.0003315,7]
[331684480,1720636245008,-2008.16,0.0003315,4]
[331684481,1720636245017,-500.0,0.0003315,7]
[331684482,1720636245026,-151.0,0.0003315,7]
[331684483,1720636245035,-614.15,0.0003315,7]
[331684484,1720636245044,-151.0,0.0003315,7]
[331684485,1720636245053,-500.0,0.0003315,7]
[331684486,1720636245063,-500.0,0.0003315,7]
[331684487,1720636245072,-500.0,0.0003315,7]
[331684488,1720636245081,-256.888994,0.0003315,7]
[331684489,1720636245090,-500.0,0.0003315,7]
[331684490,1720636245099,-256.888994,0.0003315,7]
[331684491,1720636245108,-500.0,0.0003315,7]
[331684492,1720636245117,-400.22534173,0.0003315,7]
[331684493,1720636245127,-151.0,0.0003315,2]
[331684494,1720636245136,-151.0,0.0003315,2]
[331684495,1720636245145,-500.0,0.0003315,7]
[331684496,1720636245154,-512.66982957,0.0003315,7]
[331684497,1720636245163,-175.791739,0.0003315,7]
[331684498,1720636245172,-500.0,0.0003315,7]
[331684499,1720636245181,-175.791739,0.0003315,7]
[331684500,1720636245190,-500.0,0.0003315,7]
[331684501,1720636245199,-500.0,0.0003315,7]
[331684502,1720636245208,-500.0,0.0003315,7]
[331684503,1720636245217,-509.90692375,0.0003315,7]
[331684504,1720636245226,-151.0,0.0003315,7]
[331684505,1720636245235,-151.0,0.0003315,7]
[331684506,1720636245243,-500.0,0.0003315,7]
[331684507,1720636245252,-632.93,0.0003315,7]
[331684508,1720636245262,-500.0,0.0003315,7]
[331684509,1720636245272,-215.46,0.0003315,7]
[331684510,1720636245281,-500.0,0.0003315,7]
[331684511,1720636245290,-364.46355,0.0003315,7]
[331684512,1720636245299,-364.46355,0.0003315,7]
[331684513,1720636245309,-151.0,0.0003315,7]
[331684514,1720636245318,-521.66203769,0.0003315,7]
[331684515,1720636245327,-500.0,0.0003315,7]
[331684516,1720636245337,-500.0,0.0003315,7]
[331684517,1720636245346,-151.0,0.0003315,7]
[331684518,1720636245356,-3171.777757,0.0003315,7]
[331684519,1720636245365,-3858.35,0.0003315,7]
[331684520,1720636245375,-500.0,0.0003315,2]
[331684521,1720636245385,-500.0,0.0003315,7]
[331684522,1720636245394,-3171.777757,0.0003315,7]
[331684523,1720636245404,-500.0,0.0003315,7]
[331684524,1720636245413,-2064.46,0.0003315,7]
[331684525,1720636245422,-500.0,0.0003315,7]
[331684526,1720636245433,-500.0,0.0003315,7]
[331684527,1720636245443,-411.77203336,0.0003315,7]
[331684528,1720636245452,-629.58,0.0003315,7]
[331684529,1720636245462,-500.0,0.0003315,7]
[331684530,1720636245471,-2532.894488,0.0003315,7]
[331684531,1720636245479,-500.0,0.0003315,7]
[331684532,1720636245491,-500.0,0.0003315,7]
[331684533,1720636245500,-2532.894488,0.0003315,7]
[331684534,1720636245509,-500.0,0.0003315,7]
[331684535,1720636245518,-500.0,0.0003315,7]
[331684536,1720636245527,-1785.96,0.0003315,7]
[331684537,1720636245536,-511.18442237,0.0003315,7]
[331684538,1720636245545,-838.53,0.0003315,7]
[331684539,1720636245555,-500.0,0.0003315,7]
[331684540,1720636245564,-500.0,0.0003315,7]
[331684541,1720636245574,-500.0,0.0003315,7]
[331684542,1720636245583,-500.0,0.0003315,7]
[331684543,1720636245592,-756.21,0.0003315,7]
[331684544,1720636245601,-500.0,0.0003315,7]
[331684545,1720636245610,-588.28,0.0003315,7]
[331684546,1720636245620,-3183.39,0.0003315,7]
[331684547,1720636245630,-500.0,0.0003315,7]
[331684548,1720636245641,-500.0,0.0003315,7]
[331684549,1720636245651,-731.16,0.0003315,7]
[331684550,1720636245661,-500.0,0.0003315,7]
[331684551,1720636245670,-9315.52,0.0003315,7]
[331684552,1720636245679,-500.0,0.0003315,7]
[331684553,1720636245689,-500.0,0.0003315,7]
[331684554,1720636245699,-500.0,0.0003315,7]
[331684555,1720636245708,-622.76,0.0003315,7]
[331684556,1720636245717,-674.3,0.0003315,7]
[331684557,1720636245726,-500.0,0.0003315,7]
[331684558,1720636245736,-731.5,0.0003315,7]
[331684559,1720636245746,-500.0,0.0003315,7]
[331684560,1720636245755,-500.0,0.0003315,7]
[331684561,1720636245764,-500.0,0.0003315,7]
[331684562,1720636245773,-500.0,0.0003315,7]
[331684563,1720636245783,-500.0,0.0003315,7]
[331684564,1720636245792,-624.6173988,0.0003315,7]
[331684565,1720636245801,-500.0,0.0003315,7]
[331684566,1720636245810,-1236.65,0.0003315,7]
[331684567,1720636245819,-500.0,0.0003315,7]
[331684568,1720636245829,-501.72488753,0.0003315,2]
[331684569,1720636245838,-500.0,0.0003315,2]
[331684570,1720636245847,-500.0,0.0003315,7]
[331684571,1720636245857,-500.0,0.0003315,2]
[331684572,1720636245866,-366.6405652,0.0003326,2]
[331684573,1720636245877,-600.0,0.00033271,2]
[331684574,1720636245886,-179.002825,0.00033295,2]
[331684575,1720636245895,-151.50895514,0.00033328,2]
[331684576,1720636245904,-622.851427,0.00033397,7]
[331684577,1720636245913,-622.851427,0.00033397,7]
[331684578,1720636245923,-151.0,0.00033397,7]
[331684579,1720636245931,-151.0,0.00033397,7]
[331684580,1720636245940,-1011.626735,0.00033397,7]
[331684581,1720636245949,-1011.626735,0.00033397,7]
[331684582,1720636245959,-857.68572,0.00033397,7]
[331684583,1720636245969,-151.0,0.00033397,7]
[331684584,1720636245978,-857.68572,0.00033397,7]
[331684585,1720636245988,-232.604208,0.00033397,7]
[331684586,1720636245998,-151.0,0.00033397,7]
[331684587,1720636246007,-232.604208,0.00033397,7]
[331684588,1720636246016,-306.0,0.00033397,2]
[331684589,1720636246025,-500.0,0.00033399,5]
[331684590,1720636246035,-500.0,0.00033399,5]
[331684591,1720636246044,-500.0,0.00033399,5]
[331684592,1720636246053,-151.0,0.00033399,7]
[331684593,1720636246062,-151.0,0.00033399,7]
[331684595,1720636246071,-5292.88975486,0.00033399,2]
[331684596,1720636246081,-500.0,0.00033423,5]
[331684597,1720636246090,-500.0,0.00033423,5]
[331684598,1720636246099,-500.0,0.00033423,5]
[331684599,1720636246108,-280.19812219,0.00033423,5]
[331684600,1720636246117,-22014.31058806,0.00033424,5]
[331684601,1720636246127,-500.0,0.00033424,7]
[331684602,1720636246136,-500.0,0.00033424,7]
[331684603,1720636246145,-500.0,0.00033424,7]
[331684604,1720636246154,-973.43,0.00033424,7]
[331684605,1720636246163,-500.0,0.00033424,7]
[331684606,1720636246172,-500.0,0.00033424,7]
[331684607,1720636246181,-500.0,0.00033424,7]
[331684608,1720636246190,-500.0,0.00033424,7]
[331684609,1720636246200,-500.0,0.00033424,7]
[331684610,1720636246209,-500.0,0.00033424,7]
[331684611,1720636246218,-733.17,0.00033424,7]
[331684612,1720636246227,-500.0,0.00033424,7]
[331684613,1720636246237,-500.0,0.00033424,7]
[331684614,1720636246246,-925.78,0.00033424,7]
[331684615,1720636246256,-811.04,0.00033424,7]
[331684616,1720636246265,-500.0,0.00033424,7]
[331684617,1720636246274,-1500.0,0.00033424,7]
[331684618,1720636246283,-379.0047846,0.00033424,7]
[331684619,1720636246292,-1393.03,0.00033424,7]
[331684620,1720636246301,-468.10779224,0.00033424,7]
[331684621,1720636246310,-690.35,0.00033424,7]
[331684622,1720636246320,-698.71,0.00033424,7]
[331684623,1720636246329,-508.18,0.00033424,7]
[331684624,1720636246338,-500.0,0.00033424,7]
[331684625,1720636246347,-502.73946256,0.00033424,7]
[331684626,1720636246357,-500.0,0.00033424,7]
[331684627,1720636246366,-529.86589719,0.00033424,7]
[331684628,1720636246376,-151.0,0.00033424,7]
[331684629,1720636246385,-500.0006609,0.00033424,7]
[331684630,1720636246395,-500.0,0.00033424,7]
[331684632,1720636246405,-500.0,0.00033424,7]
[331684633,1720636246414,-500.0,0.00033424,7]
[331684635,1720636246424,-500.0,0.00033424,7]
[331684637,1720636246433,-500.0,0.00033424,7]
[331684638,1720636246443,-500.0,0.00033424,7]
[331684639,1720636246451,-633.42,0.00033424,7]
[331684640,1720636246461,-151.0,0.00033424,7]
[331684641,1720636246470,-486.30993831,0.00033424,7]
[331684642,1720636246479,-500.0,0.00033424,7]
[331684644,1720636246490,-188.026693,0.00033424,7]
[331684646,1720636246499,-188.026693,0.00033424,7]
[331684647,1720636246508,-2095.64,0.00033424,7]
[331684648,1720636246517,-500.0,0.00033424,7]
[331684649,1720636246526,-1185.53,0.00033424,7]
[331684651,1720636246535,-500.0,0.00033424,7]
[331684652,1720636246545,-500.0,0.00033424,7]
[331684653,1720636246554,-500.0,0.00033424,7]
[331684654,1720636246563,-602.98,0.00033424,7]
[331684655,1720636246572,-4898.91,0.00033424,7]
[331684656,1720636246582,-491.79553907,0.00033424,7]
[331684657,1720636246591,-500.0,0.00033424,7]
[331684658,1720636246600,-1150.07,0.00033424,7]
[331684659,1720636246609,-1655.71,0.00033424,7]
[331684660,1720636246618,-500.0,0.00033424,2]
[331684661,1720636246627,-500.0,0.00033424,7]
[331684662,1720636246637,-321.91113139,0.00033424,7]
[331684663,1720636246648,-500.0,0.00033424,7]
[331684664,1720636246657,-902.9,0.00033424,7]
[331684665,1720636246666,-2008.16,0.00033424,4]
[331684666,1720636246675,-500.0,0.00033424,7]
[331684667,1720636246685,-614.15,0.00033424,7]
[331684668,1720636246695,-500.0,0.00033424,7]
[331684669,1720636246704,-500.0,0.00033424,7]
[331684670,1720636246713,-529.42026115,0.00033424,7]
[331684671,1720636246722,-500.0,0.00033424,7]
[331684672,1720636246731,-500.0,0.00033424,7]
[331684673,1720636246743,-500.0,0.00033424,7]
[331684674,1720636246752,-500.0,0.00033424,7]
[331684675,1720636246764,-243.73,0.00033424,7]
[331684676,1720636246773,-635.92205038,0.00033424,7]
[331684677,1720636246875,-500.0,0.00033424,7]
[331684678,1720636246884,-151.0,0.00033424,7]
[331684679,1720636246893,-151.0,0.00033424,7]
[331684680,1720636246902,-500.0,0.00033424,7]
[331684681,1720636246911,-500.0,0.00033424,7]
[331684682,1720636246919,-632.93,0.00033424,7]
[331684683,1720636246928,-500.0,0.00033424,7]
[331684684,1720636246937,-364.46355,0.00033424,7]
[331684685,1720636246947,-364.46355,0.00033424,7]
[331684686,1720636246956,-151.0,0.00033424,7]
[331684687,1720636246965,-500.0,0.00033424,7]
[331684688,1720636246976,-541.26377703,0.00033424,7]
[331684689,1720636246987,-151.0,0.00033424,7]
[331684690,1720636246996,-3171.777757,0.00033424,7]
[331684691,1720636247005,-3858.35,0.00033424,7]
[331684692,1720636247014,-500.0,0.00033424,2]
[331684693,1720636247023,-500.0,0.00033424,7]
[331684694,1720636247032,-3171.777757,0.00033424,7]
[331684695,1720636247041,-500.0,0.00033424,7]
[331684696,1720636247050,-2064.46,0.00033424,7]
[331684697,1720636247059,-500.0,0.00033424,7]
[331684698,1720636247068,-195.66556059,0.00033424,7]
[331684699,1720636247077,-629.58,0.00033424,7]
[331684700,1720636247086,-507.65491203,0.00033424,7]
[331684701,1720636247096,-2532.894488,0.00033424,7]
[331684702,1720636247104,-500.0,0.00033424,7]
[331684703,1720636247114,-500.0,0.00033424,7]
[331684704,1720636247123,-2532.894488,0.00033424,7]
[331684705,1720636247132,-500.0,0.00033424,7]
[331684706,1720636247141,-500.0,0.00033424,7]
[331684707,1720636247150,-151.0,0.00033424,7]
[331684708,1720636247159,-1785.96,0.00033424,7]
[331684709,1720636247168,-187.87868,0.00033424,7]
[331684710,1720636247177,-151.0,0.00033424,7]
[331684711,1720636247185,-187.87868,0.00033424,7]
[331684712,1720636247194,-838.53,0.00033424,7]
[331684713,1720636247203,-500.0,0.00033424,7]
[331684714,1720636247211,-500.0,0.00033424,7]
[331684715,1720636247220,-697.269872,0.00033424,7]
[331684716,1720636247230,-697.269872,0.00033424,7]
[331684717,1720636247240,-500.0,0.00033424,7]
[331684718,1720636247249,-500.0,0.00033424,7]
[331684719,1720636247258,-756.21,0.00033424,7]
[331684720,1720636247268,-500.0,0.00033424,7]
[331684721,1720636247277,-588.28,0.00033424,7]
[331684722,1720636247286,-151.0,0.00033424,7]
[331684723,1720636247296,-3183.39,0.00033424,7]
[331684724,1720636247305,-151.0,0.00033424,7]
[331684725,1720636247314,-500.0,0.00033424,7]
[331684726,1720636247323,-500.0,0.00033424,7]
[331684727,1720636247332,-731.16,0.00033424,7]
[331684728,1720636247340,-500.0,0.00033424,7]
[331684729,1720636247350,-9315.52,0.00033424,7]
[331684730,1720636247358,-494.06620847,0.00033424,7]
[331684731,1720636247472,-5.93379153,0.00033424,7]
[331684732,1720636247482,-509.24486712,0.00033424,7]
[331684733,1720636247492,-500.0,0.00033424,7]
[331684734,1720636247502,-622.76,0.00033424,7]
[331684735,1720636247512,-674.3,0.00033424,7]
[331684736,1720636247521,-500.0,0.00033424,7]
[331684737,1720636247530,-33.43701579,0.00033424,7]
[331684738,1720636247721,-155.43553926,0.0002987,2]
[331684739,1720636247731,-2213.99,0.000309,3]
[331684740,1720636247741,-500.0,0.00032876,7]
[331684741,1720636247751,-442.699154,0.00032876,7]
[331684742,1720636247760,-500.0,0.00032876,2]
[331684743,1720636247769,-442.699154,0.00032876,7]
[331684744,1720636247779,-698.06298421,0.00033424,7]
[331684745,1720636247788,-214.75626966,0.00033424,7]
[331684746,1720636247797,-500.0,0.00033424,7]
[331684747,1720636247806,-500.0,0.00033424,7]
[331684748,1720636247815,-500.0,0.00033424,7]
[331684749,1720636247824,-500.0,0.00033424,7]
[331684750,1720636247833,-500.0,0.00033424,7]
[331684751,1720636247842,-1236.65,0.00033424,7]
[331684752,1720636247851,-500.0,0.00033424,7]
[331684753,1720636247861,-500.0,0.00033424,2]
[331684754,1720636247870,-500.0,0.00033424,7]
[331684755,1720636247881,-500.0,0.00033424,2]
[331684756,1720636247890,-204260.92269812,0.000335,2]
[331684757,1720636248230,-442.699154,0.00032928,7]
[331684758,1720636248240,-57.08112332,0.00033397,7]
[331684759,1720636248252,-385.61803068,0.00033397,7]
[331684760,1720636248261,-920.67351095,0.000335,2]
[331684761,1720636248392,-1468.6185193,0.000335,2]
[331684762,1720636277487,453.22022894,0.00029,2]
[331684763,1720636346442,453.22022894,0.00029,2]
[331684767,1720636458581,160.160422,0.00021096,2]
[331684768,1720636486905,575.49788648,0.00021096,2]
[331684769,1720636497106,763.93203298,0.00021096,2]
[331684770,1720636511093,2000.0,0.00021096,2]
[331684771,1720636526363,303.32193746,0.00021096,2]
[331684797,1720637233125,-300.0,0.00021095,2]
[331684798,1720637233146,-300.0,0.00021095,2]
[331684799,1720637233167,-161.102542,0.00021096,2]
[331684800,1720637233188,-763.93203298,0.00021096,2]
[331684801,1720637233209,-2000.0,0.00021096,2]
[331684802,1720637233229,-575.49788648,0.00021096,2]
[331684803,1720637233250,-303.32193746,0.00021096,2]
[331684804,1720637233286,-285.68341675,0.00022579,2]
[331684805,1720637233306,-529.85654432,0.00025204,2]
[331684806,1720637233326,-44262.70690414,0.00025501,2]
[331684807,1720637234128,-2569.93134179,0.00025501,2]
[331684809,1720637350114,-2635.05597383,0.00025401,2]
[331684810,1720637350135,-2000.0,0.00025501,2]
[331684811,1720637350155,-189.26423783,0.00025501,2]
[331684812,1720637350175,-763.93203298,0.00025501,2]
[331684813,1720637350195,-5309.3741816,0.00025501,2]
[331684814,1720637350216,-392.10595593,0.00025501,2]
[331684815,1720637350237,-4296.64832338,0.00025531,2]
[331684816,1720637358093,-301.91698345,0.00025501,2]
[331684817,1720637358113,-763.93203298,0.00025501,2]
[331684818,1720637358137,-3483.89830592,0.00025531,2]
[331684819,1720637358159,-9888.20036979,0.00025869,2]
[331684820,1720637373439,-466.6642633,0.00025501,2]
[331684821,1720637373472,-369.29042552,0.00025869,2]
[331684822,1720637373687,-835.95468882,0.00025869,2]
[331684824,1720637397355,-869.39287637,0.00025501,2]
[331684826,1720637397405,-453.42528003,0.00025501,2]
[331684833,1720637433276,-8380.54662934,0.00025501,2]
[331684878,1720637439085,-20296.63521426,0.00025501,2]
[331684879,1720637439096,-164.704249,0.00026233,2]
[331684880,1720637439105,-161.102542,0.00027195,2]
[331684881,1720637439115,-431.12938215,0.0002865,2]
[331684882,1720637439124,-783.7029861,0.00028669,2]
[331684883,1720637439134,-150.5,0.0002874,62]
[331684884,1720637439143,-3270.05,0.0002874,3]
[331684885,1720637439153,-3419.67,0.0002874,3]
[331684886,1720637439162,-150.5,0.0002875,62]
[331684887,1720637439171,-142168.518893,0.0002875,3]
[331684888,1720637439181,-178.0437649,0.00028758,2]
[331684889,1720637439191,-500.0,0.00028758,2]